[Event "Titled Tuesday Blitz February 22 Late 2022"]
[White "Holt, Conrad"]
[Black "Sarana, Alexey"]
[WhiteFideId "2034387"]
[BlackFideId "24133795"]
[WhiteElo "2586"]
[BlackElo "2665"]
[Result "0-1"]
[Round "04"]
[TimeControl "180+1"]
[Date "2022.02.22"]
[WhiteClock "0:00:02"]
[BlackClock "0:00:04"]

1. d4 {[%clk 0:02:58]}  Nf6 {[%clk 0:03:00]} 2. c4 {[%clk 0:02:57]}  e6 {[%clk 0:03:01]} 3. Nc3 {[%clk 0:02:58]}  Bb4 {[%clk 0:03:00]} 4. Qc2 {[%clk 0:02:58]}  d5 {[%clk 0:02:59]} 5. cxd5 {[%clk 0:02:59]}  exd5 {[%clk 0:02:58]} 6. Bg5 {[%clk 0:02:59]}  h6 {[%clk 0:02:58]} 7. Bxf6 {[%clk 0:02:59]}  Qxf6 {[%clk 0:02:58]} 8. a3 {[%clk 0:02:59]}  Bxc3+ {[%clk 0:02:54]} 9. Qxc3 {[%clk 0:03:00]}  c6 {[%clk 0:02:46]} 10. e3 {[%clk 0:02:59]}  O-O {[%clk 0:02:45]} 11. Ne2 {[%clk 0:02:58]}  Bf5 {[%clk 0:02:44]} 12. Ng3 {[%clk 0:02:59]}  Nd7 {[%clk 0:02:45]} 13. Nxf5 {[%clk 0:02:58]}  Qxf5 {[%clk 0:02:45]} 14. Bd3 {[%clk 0:02:58]}  Qe6 {[%clk 0:02:44]} 15. O-O {[%clk 0:02:57]}  a5 {[%clk 0:02:44]} 16. b4 {[%clk 0:02:48]}  axb4 {[%clk 0:02:28]} 17. axb4 {[%clk 0:02:48]}  b5 {[%clk 0:02:28]} 18. Rxa8 {[%clk 0:02:31]}  Rxa8 {[%clk 0:02:27]} 19. Rc1 {[%clk 0:02:31]}  Nb6 {[%clk 0:02:23]} 20. g3 {[%clk 0:02:13]}  Nc4 {[%clk 0:02:21]} 21. Ra1 {[%clk 0:02:13]}  Qe8 {[%clk 0:02:18]} 22. Rxa8 {[%clk 0:02:07]}  Qxa8 {[%clk 0:02:18]} 23. e4 {[%clk 0:02:08]}  Qa4 {[%clk 0:02:14]} 24. Qe1 {[%clk 0:01:32]}  Qb3 {[%clk 0:01:57]} 25. Bf1 {[%clk 0:01:29]}  Kf8 {[%clk 0:01:06]} 26. exd5 {[%clk 0:01:04]}  cxd5 {[%clk 0:01:07]} 27. Bg2 {[%clk 0:00:55]}  Nd6 {[%clk 0:01:00]} 28. Qa1 {[%clk 0:00:49]}  Qa4 {[%clk 0:00:31]} 29. Qb1 {[%clk 0:00:27]}  Qa8 {[%clk 0:00:23]} 30. h4 {[%clk 0:00:17]}  Qc6 {[%clk 0:00:22]} 31. Qa1 {[%clk 0:00:16]}  g6 {[%clk 0:00:21]} 32. Qa7 {[%clk 0:00:14]}  Ne4 {[%clk 0:00:18]} 33. Qb8+ {[%clk 0:00:13]}  Kg7 {[%clk 0:00:18]} 34. Qe5+ {[%clk 0:00:13]}  Nf6 {[%clk 0:00:17]} 35. g4 {[%clk 0:00:13]}  Kg8 {[%clk 0:00:17]} 36. Bf3 {[%clk 0:00:10]}  Ne4 {[%clk 0:00:10]} 37. Kg2 {[%clk 0:00:10]}  Nc3 {[%clk 0:00:07]} 38. g5 {[%clk 0:00:08]}  hxg5 {[%clk 0:00:07]} 39. Qxg5 {[%clk 0:00:08]}  Qd6 {[%clk 0:00:06]} 40. h5 {[%clk 0:00:07]}  Kg7 {[%clk 0:00:06]} 41. Qe3 {[%clk 0:00:03]}  Qxb4 {[%clk 0:00:04]} 42. Qe5+ {[%clk 0:00:04]}  Kh7 {[%clk 0:00:04]} 43. hxg6+ {[%clk 0:00:02]}  fxg6 {[%clk 0:00:04]} 44. Qc7+ {[%clk 0:00:03]}  Kh6 {[%clk 0:00:04]} 45. Qh2+ {[%clk 0:00:03]}  Kg7 {[%clk 0:00:04]} 46. Qc7+ {[%clk 0:00:03]}  Kf8 {[%clk 0:00:03]} 47. Qd8+ {[%clk 0:00:03]}  Kf7 {[%clk 0:00:04]} 48. Bxd5+ {[%clk 0:00:03]}  Nxd5 {[%clk 0:00:03]} 49. Qxd5+ {[%clk 0:00:04]}  Kg7 {[%clk 0:00:03]} 50. Qe5+ {[%clk 0:00:04]}  Kh7 {[%clk 0:00:04]} 51. Qc7+ {[%clk 0:00:04]}  Kh6 {[%clk 0:00:04]} 52. d5 {[%clk 0:00:04]}  Qe4+ {[%clk 0:00:03]} 53. Kg1 {[%clk 0:00:04]}  Qxd5 {[%clk 0:00:04]} 54. Qh2+ {[%clk 0:00:04]}  Qh5 {[%clk 0:00:04]} 55. Qb8 {[%clk 0:00:03]}  Qg5+ {[%clk 0:00:04]} 56. Kf1 {[%clk 0:00:03]}  Qd5 {[%clk 0:00:05]} 57. Qh8+ {[%clk 0:00:02]}  Kg5 {[%clk 0:00:05]} 58. Qb2 {[%clk 0:00:02]}  Kf5 {[%clk 0:00:04]} 59. Qb1+ {[%clk 0:00:02]}  Kf6 {[%clk 0:00:04]} 60. Qb2+ {[%clk 0:00:02]}  Kf7 {[%clk 0:00:05]} 61. Qb1 {[%clk 0:00:02]}  g5 {[%clk 0:00:04]} 0-1


[Site "https://www.chess.com"]

[Event "Titled Tuesday Blitz February 22 Late 2022"]
[White "Horak, Martin"]
[Black "Riehle, Marco"]
[WhiteFideId "367095"]
[BlackFideId "12904392"]
[WhiteElo "1997"]
[BlackElo "2462"]
[Result "1-0"]
[Round "04"]
[TimeControl "180+1"]
[Date "2022.02.23"]
[WhiteClock "0:00:55"]
[BlackClock "0:01:06"]

1. d4 {[%clk 0:03:00]}  e6 {[%clk 0:02:58]} 2. c4 {[%clk 0:03:00]}  d5 {[%clk 0:02:57]} 3. Nf3 {[%clk 0:02:59]}  Nf6 {[%clk 0:02:56]} 4. g3 {[%clk 0:02:59]}  dxc4 {[%clk 0:02:55]} 5. Bg2 {[%clk 0:02:59]}  c5 {[%clk 0:02:55]} 6. O-O {[%clk 0:02:58]}  Nc6 {[%clk 0:02:51]} 7. dxc5 {[%clk 0:02:56]}  Qxd1 {[%clk 0:02:49]} 8. Rxd1 {[%clk 0:02:57]}  Bxc5 {[%clk 0:02:49]} 9. Nbd2 {[%clk 0:02:57]}  c3 {[%clk 0:02:48]} 10. bxc3 {[%clk 0:02:58]}  Bd7 {[%clk 0:02:47]} 11. Nb3 {[%clk 0:02:58]}  Be7 {[%clk 0:02:47]} 12. c4 {[%clk 0:02:58]}  O-O-O {[%clk 0:02:40]} 13. Bb2 {[%clk 0:02:56]}  Kb8 {[%clk 0:02:19]} 14. Ne5 {[%clk 0:02:50]}  Nxe5 {[%clk 0:02:15]} 15. Bxe5+ {[%clk 0:02:51]}  Kc8 {[%clk 0:02:13]} 16. Na5 {[%clk 0:02:39]}  Bc6 {[%clk 0:02:09]} 17. Nxc6 {[%clk 0:02:18]}  bxc6 {[%clk 0:02:05]} 18. Bxc6 {[%clk 0:02:19]}  Bc5 {[%clk 0:02:03]} 19. Rab1 {[%clk 0:02:08]}  Rxd1+ {[%clk 0:02:00]} 20. Rxd1 {[%clk 0:02:09]}  Bxf2+ {[%clk 0:02:00]} 21. Kg2 {[%clk 0:02:03]}  Bc5 {[%clk 0:01:56]} 22. h3 {[%clk 0:01:46]}  Rd8 {[%clk 0:01:45]} 23. Bb7+ {[%clk 0:01:44]}  Kxb7 {[%clk 0:01:43]} 24. Rxd8 {[%clk 0:01:44]}  Ne4 {[%clk 0:01:39]} 25. Rd7+ {[%clk 0:01:42]}  Kc6 {[%clk 0:01:38]} 26. Rxf7 {[%clk 0:01:43]}  Nd2 {[%clk 0:01:36]} 27. Rc7+ {[%clk 0:01:15]}  Kb6 {[%clk 0:01:35]} 28. Rxg7 {[%clk 0:01:16]}  Nxc4 {[%clk 0:01:34]} 29. Bc7+ {[%clk 0:01:13]}  Kc6 {[%clk 0:01:33]} 30. Rxh7 {[%clk 0:01:14]}  Ne3+ {[%clk 0:01:27]} 31. Kf3 {[%clk 0:01:13]}  Nd5 {[%clk 0:01:27]} 32. Be5 {[%clk 0:01:12]}  Nb4 {[%clk 0:01:22]} 33. h4 {[%clk 0:01:06]}  Nxa2 {[%clk 0:01:21]} 34. h5 {[%clk 0:01:07]}  Kd5 {[%clk 0:01:20]} 35. Bf6 {[%clk 0:00:58]}  Nc1 {[%clk 0:01:08]} 36. h6 {[%clk 0:00:55]}  Nb3 {[%clk 0:01:07]} 37. Rd7+ {[%clk 0:00:55]}  Kc6 {[%clk 0:01:06]} 38. Rd1 {[%clk 0:00:55]} 1-0


[Site "https://www.chess.com"]

[Event "Titled Tuesday Blitz February 22 Late 2022"]
[White "Iskusnyh, Sergei"]
[Black "Golubenko, Valentina"]
[WhiteFideId "4120027"]
[BlackFideId "4501993"]
[WhiteElo "2492"]
[BlackElo "2164"]
[Result "1-0"]
[Round "04"]
[TimeControl "180+1"]
[Date "2022.02.23"]
[WhiteClock "0:00:24"]
[BlackClock "0:00:09"]

1. d4 {[%clk 0:03:00]}  Nf6 {[%clk 0:02:58]} 2. c4 {[%clk 0:02:59]}  c5 {[%clk 0:02:58]} 3. d5 {[%clk 0:02:59]}  d6 {[%clk 0:02:57]} 4. Nc3 {[%clk 0:02:57]}  g6 {[%clk 0:02:57]} 5. Nf3 {[%clk 0:02:54]}  e6 {[%clk 0:02:58]} 6. e4 {[%clk 0:02:53]}  exd5 {[%clk 0:02:58]} 7. cxd5 {[%clk 0:02:52]}  Bg7 {[%clk 0:02:58]} 8. Nd2 {[%clk 0:02:52]}  O-O {[%clk 0:02:57]} 9. Be2 {[%clk 0:02:52]}  a6 {[%clk 0:02:56]} 10. a4 {[%clk 0:02:51]}  Re8 {[%clk 0:02:53]} 11. O-O {[%clk 0:02:51]}  Nbd7 {[%clk 0:02:53]} 12. Ra3 {[%clk 0:02:46]}  b6 {[%clk 0:02:53]} 13. Re1 {[%clk 0:02:44]}  Rb8 {[%clk 0:02:53]} 14. Bf1 {[%clk 0:02:40]}  Qc7 {[%clk 0:02:52]} 15. Qc2 {[%clk 0:02:26]}  Nf8 {[%clk 0:02:29]} 16. h3 {[%clk 0:02:20]}  Bd7 {[%clk 0:02:29]} 17. Bxa6 {[%clk 0:02:17]}  Nh5 {[%clk 0:02:14]} 18. Nc4 {[%clk 0:02:13]}  f5 {[%clk 0:02:09]} 19. Nb5 {[%clk 0:01:59]}  Bxb5 {[%clk 0:02:07]} 20. Bxb5 {[%clk 0:01:58]}  Re7 {[%clk 0:02:05]} 21. Bd2 {[%clk 0:01:35]}  f4 {[%clk 0:01:59]} 22. Bc3 {[%clk 0:01:25]}  Nd7 {[%clk 0:01:07]} 23. Bxg7 {[%clk 0:01:24]}  Nxg7 {[%clk 0:01:01]} 24. Bxd7 {[%clk 0:01:10]}  Qxd7 {[%clk 0:00:56]} 25. Rd3 {[%clk 0:00:47]}  Nf5 {[%clk 0:00:38]} 26. Qd2 {[%clk 0:00:38]}  Nd4 {[%clk 0:00:34]} 27. Qxf4 {[%clk 0:00:36]}  b5 {[%clk 0:00:17]} 28. axb5 {[%clk 0:00:33]}  Rxb5 {[%clk 0:00:17]} 29. Qxd6 {[%clk 0:00:32]}  Qxd6 {[%clk 0:00:17]} 30. Nxd6 {[%clk 0:00:32]}  Rxb2 {[%clk 0:00:17]} 31. e5 {[%clk 0:00:28]}  Ne2+ {[%clk 0:00:16]} 32. Kh2 {[%clk 0:00:27]}  Rxe5 {[%clk 0:00:17]} 33. Nc4 {[%clk 0:00:25]}  Rb7 {[%clk 0:00:09]} 34. Nxe5 {[%clk 0:00:24]} 1-0


[Site "https://www.chess.com"]

[Event "Titled Tuesday Blitz February 22 Late 2022"]
[White "Jaracz, Pawel"]
[Black "Al Hosani, Omran"]
[WhiteFideId "1102222"]
[BlackFideId "9308733"]
[WhiteElo "2429"]
[BlackElo "2246"]
[Result "1/2-1/2"]
[Round "04"]
[TimeControl "180+1"]
[Date "2022.02.23"]
[WhiteClock "0:00:06"]
[BlackClock "0:00:07"]

1. d4 {[%clk 0:03:00]}  Nf6 {[%clk 0:02:56]} 2. c4 {[%clk 0:03:01]}  g6 {[%clk 0:02:54]} 3. g3 {[%clk 0:03:00]}  d5 {[%clk 0:02:54]} 4. Nf3 {[%clk 0:02:57]}  Bg7 {[%clk 0:02:54]} 5. Bg2 {[%clk 0:02:57]}  O-O {[%clk 0:02:52]} 6. O-O {[%clk 0:02:56]}  dxc4 {[%clk 0:02:53]} 7. Na3 {[%clk 0:02:56]}  c3 {[%clk 0:02:52]} 8. bxc3 {[%clk 0:02:57]}  c5 {[%clk 0:02:52]} 9. Nc4 {[%clk 0:02:56]}  cxd4 {[%clk 0:02:51]} 10. cxd4 {[%clk 0:02:56]}  Nc6 {[%clk 0:02:52]} 11. Ba3 {[%clk 0:02:49]}  Be6 {[%clk 0:02:50]} 12. Rc1 {[%clk 0:02:45]}  Rc8 {[%clk 0:02:48]} 13. Nce5 {[%clk 0:02:22]}  Bd5 {[%clk 0:02:43]} 14. Nxc6 {[%clk 0:02:14]}  Bxc6 {[%clk 0:02:43]} 15. e3 {[%clk 0:02:10]}  Qa5 {[%clk 0:02:31]} 16. Bxe7 {[%clk 0:02:09]}  Rfe8 {[%clk 0:02:27]} 17. Bxf6 {[%clk 0:02:07]}  Bxf6 {[%clk 0:02:27]} 18. Qd2 {[%clk 0:01:55]}  Qa6 {[%clk 0:02:13]} 19. h4 {[%clk 0:01:36]}  Bd5 {[%clk 0:02:01]} 20. Ng5 {[%clk 0:01:25]}  Qxa2 {[%clk 0:01:18]} 21. Qxa2 {[%clk 0:01:24]}  Bxa2 {[%clk 0:01:19]} 22. Bxb7 {[%clk 0:01:21]}  Rb8 {[%clk 0:01:16]} 23. Rc7 {[%clk 0:01:11]}  a5 {[%clk 0:01:11]} 24. Rfc1 {[%clk 0:01:05]}  a4 {[%clk 0:01:07]} 25. Bc6 {[%clk 0:01:05]}  Rec8 {[%clk 0:00:15]} 26. Bxa4 {[%clk 0:01:01]}  Rxc7 {[%clk 0:00:15]} 27. Rxc7 {[%clk 0:01:01]}  Bd5 {[%clk 0:00:15]} 28. e4 {[%clk 0:00:54]}  Bxg5 {[%clk 0:00:11]} 29. exd5 {[%clk 0:00:54]}  Bf6 {[%clk 0:00:11]} 30. d6 {[%clk 0:00:51]}  Rb4 {[%clk 0:00:10]} 31. Be8 {[%clk 0:00:45]}  Rxd4 {[%clk 0:00:09]} 32. Bxf7+ {[%clk 0:00:45]}  Kf8 {[%clk 0:00:09]} 33. Bc4 {[%clk 0:00:37]}  Rxd6 {[%clk 0:00:08]} 34. Rxh7 {[%clk 0:00:37]}  Rc6 {[%clk 0:00:09]} 35. Bd5 {[%clk 0:00:35]}  Rd6 {[%clk 0:00:09]} 36. Be4 {[%clk 0:00:33]}  Bd4 {[%clk 0:00:09]} 37. Kg2 {[%clk 0:00:32]}  Rf6 {[%clk 0:00:09]} 38. f4 {[%clk 0:00:31]}  Kg8 {[%clk 0:00:09]} 39. Rd7 {[%clk 0:00:31]}  Bc3 {[%clk 0:00:09]} 40. Kf3 {[%clk 0:00:30]}  Rb6 {[%clk 0:00:07]} 41. Kg4 {[%clk 0:00:29]}  Kf8 {[%clk 0:00:04]} 42. Kg5 {[%clk 0:00:23]}  Bf6+ {[%clk 0:00:03]} 43. Kxg6 {[%clk 0:00:21]}  Bxh4+ {[%clk 0:00:03]} 44. Kf5 {[%clk 0:00:18]}  Bxg3 {[%clk 0:00:03]} 45. Bd5 {[%clk 0:00:19]}  Ke8 {[%clk 0:00:04]} 46. Rg7 {[%clk 0:00:18]}  Bh4 {[%clk 0:00:04]} 47. Be6 {[%clk 0:00:18]}  Rb5+ {[%clk 0:00:03]} 48. Kg6 {[%clk 0:00:18]}  Kd8 {[%clk 0:00:03]} 49. f5 {[%clk 0:00:18]}  Rb1 {[%clk 0:00:03]} 50. Rd7+ {[%clk 0:00:15]}  Ke8 {[%clk 0:00:03]} 51. Rd4 {[%clk 0:00:07]}  Rg1+ {[%clk 0:00:03]} 52. Kh5 {[%clk 0:00:07]}  Bf6 {[%clk 0:00:03]} 53. Ra4 {[%clk 0:00:06]}  Rh1+ {[%clk 0:00:03]} 54. Kg6 {[%clk 0:00:07]}  Bd8 {[%clk 0:00:02]} 55. f6 {[%clk 0:00:07]}  Rg1+ {[%clk 0:00:02]} 56. Bg4 {[%clk 0:00:08]}  Bxf6 {[%clk 0:00:02]} 57. Kxf6 {[%clk 0:00:07]}  Kd8 {[%clk 0:00:03]} 58. Ke5 {[%clk 0:00:07]}  Kc7 {[%clk 0:00:04]} 59. Be6 {[%clk 0:00:07]}  Kb6 {[%clk 0:00:04]} 60. Re4 {[%clk 0:00:06]}  Rg5+ {[%clk 0:00:03]} 61. Bf5 {[%clk 0:00:05]}  Rg1 {[%clk 0:00:04]} 62. Re2 {[%clk 0:00:05]}  Kc5 {[%clk 0:00:05]} 63. Rc2+ {[%clk 0:00:05]}  Kb4 {[%clk 0:00:05]} 64. Be4 {[%clk 0:00:06]}  Re1 {[%clk 0:00:06]} 65. Rc7 {[%clk 0:00:06]}  Kb5 {[%clk 0:00:05]} 66. Kd6 {[%clk 0:00:05]}  Rxe4 {[%clk 0:00:05]} 67. Kd5 {[%clk 0:00:04]}  Re1 {[%clk 0:00:05]} 68. Rb7+ {[%clk 0:00:05]}  Ka6 {[%clk 0:00:06]} 69. Rb3 {[%clk 0:00:04]}  Rd1+ {[%clk 0:00:06]} 70. Kc4 {[%clk 0:00:05]}  Rc1+ {[%clk 0:00:07]} 71. Rc3 {[%clk 0:00:05]}  Rxc3+ {[%clk 0:00:07]} 72. Kxc3 {[%clk 0:00:06]} 1/2-1/2


[Site "https://www.chess.com"]

[Event "Titled Tuesday Blitz February 22 Late 2022"]
[White "Jarocka, Liwia"]
[Black "Yuan, Qingyu"]
[WhiteFideId "21807558"]
[BlackFideId "8609772"]
[WhiteElo "1896"]
[BlackElo "2359"]
[Result "0-1"]
[Round "04"]
[TimeControl "180+1"]
[Date "2022.02.23"]
[WhiteClock "0:00:06"]
[BlackClock "0:00:04"]

1. e4 {[%clk 0:03:00]}  c6 {[%clk 0:02:59]} 2. d4 {[%clk 0:03:00]}  d5 {[%clk 0:03:00]} 3. e5 {[%clk 0:03:00]}  c5 {[%clk 0:03:00]} 4. dxc5 {[%clk 0:02:58]}  e6 {[%clk 0:03:01]} 5. Nf3 {[%clk 0:02:56]}  Bxc5 {[%clk 0:03:01]} 6. Bd3 {[%clk 0:02:48]}  f6 {[%clk 0:03:01]} 7. exf6 {[%clk 0:02:48]}  Nxf6 {[%clk 0:03:01]} 8. O-O {[%clk 0:02:47]}  O-O {[%clk 0:03:00]} 9. b3 {[%clk 0:02:47]}  Nc6 {[%clk 0:02:56]} 10. Bb2 {[%clk 0:02:47]}  Bd6 {[%clk 0:02:55]} 11. c4 {[%clk 0:02:47]}  Kh8 {[%clk 0:02:38]} 12. Nc3 {[%clk 0:02:46]}  d4 {[%clk 0:02:31]} 13. Ne2 {[%clk 0:02:19]}  e5 {[%clk 0:02:31]} 14. Ng3 {[%clk 0:02:18]}  Bg4 {[%clk 0:02:07]} 15. h3 {[%clk 0:02:18]}  Bxf3 {[%clk 0:02:03]} 16. Qxf3 {[%clk 0:02:19]}  Nb4 {[%clk 0:02:00]} 17. Bb1 {[%clk 0:02:09]}  Qc7 {[%clk 0:01:52]} 18. Ne4 {[%clk 0:01:59]}  Rae8 {[%clk 0:01:33]} 19. Nxf6 {[%clk 0:01:49]}  Rxf6 {[%clk 0:01:28]} 20. Qe4 {[%clk 0:01:48]}  g6 {[%clk 0:01:23]} 21. Bc1 {[%clk 0:01:46]}  Kg7 {[%clk 0:01:00]} 22. Bd2 {[%clk 0:01:43]}  Qc6 {[%clk 0:00:54]} 23. Bxb4 {[%clk 0:01:31]}  Bxb4 {[%clk 0:00:51]} 24. Qxc6 {[%clk 0:01:30]}  Rxc6 {[%clk 0:00:43]} 25. Be4 {[%clk 0:01:30]}  Rc7 {[%clk 0:00:43]} 26. Rad1 {[%clk 0:01:27]}  b6 {[%clk 0:00:43]} 27. a4 {[%clk 0:01:27]}  Rf8 {[%clk 0:00:39]} 28. g3 {[%clk 0:01:24]}  a5 {[%clk 0:00:36]} 29. Kg2 {[%clk 0:01:23]}  Rcf7 {[%clk 0:00:35]} 30. f3 {[%clk 0:01:22]}  Bc5 {[%clk 0:00:32]} 31. Rd3 {[%clk 0:01:20]}  Rf6 {[%clk 0:00:33]} 32. Bd5 {[%clk 0:01:19]}  Re8 {[%clk 0:00:30]} 33. Be4 {[%clk 0:01:19]}  Kf7 {[%clk 0:00:29]} 34. Re1 {[%clk 0:01:16]}  Re7 {[%clk 0:00:27]} 35. Re2 {[%clk 0:01:09]}  Ke8 {[%clk 0:00:27]} 36. Rd1 {[%clk 0:01:08]}  Kd7 {[%clk 0:00:28]} 37. Rde1 {[%clk 0:01:07]}  Bb4 {[%clk 0:00:27]} 38. Rd1 {[%clk 0:01:08]}  Kd6 {[%clk 0:00:27]} 39. Bd5 {[%clk 0:01:02]}  Kc7 {[%clk 0:00:22]} 40. Be4 {[%clk 0:00:57]}  Rd6 {[%clk 0:00:20]} 41. h4 {[%clk 0:00:55]}  Rf6 {[%clk 0:00:20]} 42. Bd5 {[%clk 0:00:55]}  Kd6 {[%clk 0:00:19]} 43. Rd3 {[%clk 0:00:49]}  Bc3 {[%clk 0:00:18]} 44. Rd1 {[%clk 0:00:41]}  Rf8 {[%clk 0:00:16]} 45. Be4 {[%clk 0:00:37]}  Kc5 {[%clk 0:00:15]} 46. Bc2 {[%clk 0:00:35]}  Rfe8 {[%clk 0:00:13]} 47. h5 {[%clk 0:00:28]}  gxh5 {[%clk 0:00:11]} 48. Rh1 {[%clk 0:00:28]}  Kb4 {[%clk 0:00:08]} 49. Rxh5 {[%clk 0:00:28]}  Rg8 {[%clk 0:00:06]} 50. g4 {[%clk 0:00:24]}  Ka3 {[%clk 0:00:04]} 51. Bxh7 {[%clk 0:00:07]}  Rd8 {[%clk 0:00:04]} 52. Bd3 {[%clk 0:00:06]}  Kxb3 {[%clk 0:00:05]} 53. Rexe5 {[%clk 0:00:07]}  Rxe5 {[%clk 0:00:04]} 54. Rxe5 {[%clk 0:00:08]}  Bb4 {[%clk 0:00:04]} 55. Rb5 {[%clk 0:00:07]}  Kc3 {[%clk 0:00:04]} 56. Bf1 {[%clk 0:00:07]}  d3 {[%clk 0:00:04]} 57. Rxb6 {[%clk 0:00:06]}  d2 {[%clk 0:00:04]} 58. Be2 {[%clk 0:00:06]}  Re8 {[%clk 0:00:05]} 59. Kf2 {[%clk 0:00:06]}  Bc5+ {[%clk 0:00:04]} 0-1


[Site "https://www.chess.com"]

[Event "Titled Tuesday Blitz February 22 Late 2022"]
[White "Jimenez Almeida, Luis David"]
[Black "Saveliev, Alexei"]
[WhiteFideId "22242244"]
[BlackFideId "24128546"]
[WhiteElo "2092"]
[BlackElo "2281"]
[Result "0-1"]
[Round "04"]
[TimeControl "180+1"]
[Date "2022.02.23"]
[WhiteClock "0:00:18"]
[BlackClock "0:01:13"]

1. d4 {[%clk 0:02:53]}  g6 {[%clk 0:03:00]} 2. Nf3 {[%clk 0:02:53]}  Bg7 {[%clk 0:03:00]} 3. Bg5 {[%clk 0:02:53]}  d6 {[%clk 0:03:01]} 4. Nbd2 {[%clk 0:02:53]}  Nc6 {[%clk 0:03:01]} 5. c3 {[%clk 0:02:51]}  Nf6 {[%clk 0:03:00]} 6. e4 {[%clk 0:02:48]}  O-O {[%clk 0:03:00]} 7. Bc4 {[%clk 0:02:45]}  e5 {[%clk 0:02:59]} 8. d5 {[%clk 0:02:40]}  Ne7 {[%clk 0:02:59]} 9. h3 {[%clk 0:02:37]}  h6 {[%clk 0:02:59]} 10. Bh4 {[%clk 0:02:37]}  Nh5 {[%clk 0:02:51]} 11. Nf1 {[%clk 0:01:50]}  Nf4 {[%clk 0:02:47]} 12. Ne3 {[%clk 0:01:49]}  g5 {[%clk 0:02:46]} 13. Bg3 {[%clk 0:01:49]}  f5 {[%clk 0:02:47]} 14. exf5 {[%clk 0:01:41]}  Nxf5 {[%clk 0:02:48]} 15. Nxf5 {[%clk 0:01:32]}  Bxf5 {[%clk 0:02:49]} 16. Bxf4 {[%clk 0:01:30]}  gxf4 {[%clk 0:02:38]} 17. Qb3 {[%clk 0:01:22]}  Rb8 {[%clk 0:02:11]} 18. Nd2 {[%clk 0:01:04]}  e4 {[%clk 0:02:06]} 19. O-O-O {[%clk 0:00:46]}  b5 {[%clk 0:02:03]} 20. Be2 {[%clk 0:00:45]}  a5 {[%clk 0:02:03]} 21. Bg4 {[%clk 0:00:40]}  Bg6 {[%clk 0:01:43]} 22. Qc2 {[%clk 0:00:37]}  b4 {[%clk 0:01:35]} 23. c4 {[%clk 0:00:35]}  a4 {[%clk 0:01:35]} 24. Qxa4 {[%clk 0:00:26]}  b3 {[%clk 0:01:31]} 25. Nxb3 {[%clk 0:00:23]}  Qf6 {[%clk 0:01:29]} 26. Be6+ {[%clk 0:00:18]}  Kh8 {[%clk 0:01:28]} 27. Rd2 {[%clk 0:00:18]}  e3 {[%clk 0:01:21]} 28. fxe3 {[%clk 0:00:18]}  fxe3 {[%clk 0:01:22]} 29. Re2 {[%clk 0:00:18]}  Qf1+ {[%clk 0:01:13]} 0-1


[Site "https://www.chess.com"]

[Event "Titled Tuesday Blitz February 22 Late 2022"]
[White "Kamsky, Gata"]
[Black "Nakamura, Hikaru"]
[WhiteFideId "2000024"]
[BlackFideId "2016192"]
[WhiteElo "2645"]
[BlackElo "2850"]
[Result "1/2-1/2"]
[Round "04"]
[TimeControl "180+1"]
[Date "2022.02.22"]
[WhiteClock "0:00:18"]
[BlackClock "0:00:11"]

1. d4 {[%clk 0:03:00]}  Nf6 {[%clk 0:02:55]} 2. Nf3 {[%clk 0:03:00]}  d5 {[%clk 0:02:55]} 3. Bf4 {[%clk 0:03:00]}  e6 {[%clk 0:02:54]} 4. e3 {[%clk 0:03:00]}  Bd6 {[%clk 0:02:54]} 5. Nbd2 {[%clk 0:02:59]}  c5 {[%clk 0:02:54]} 6. Bb5+ {[%clk 0:02:57]}  Nc6 {[%clk 0:02:53]} 7. Bxc6+ {[%clk 0:02:56]}  bxc6 {[%clk 0:02:53]} 8. Bxd6 {[%clk 0:02:55]}  Qxd6 {[%clk 0:02:53]} 9. c3 {[%clk 0:02:55]}  a5 {[%clk 0:02:51]} 10. O-O {[%clk 0:02:54]}  a4 {[%clk 0:02:50]} 11. b3 {[%clk 0:02:51]}  O-O {[%clk 0:02:49]} 12. Qc2 {[%clk 0:02:47]}  Ba6 {[%clk 0:02:43]} 13. Rfe1 {[%clk 0:02:46]}  cxd4 {[%clk 0:02:41]} 14. cxd4 {[%clk 0:02:42]}  axb3 {[%clk 0:02:40]} 15. Nxb3 {[%clk 0:02:41]}  Nd7 {[%clk 0:02:40]} 16. a4 {[%clk 0:02:39]}  Rfb8 {[%clk 0:02:31]} 17. Rec1 {[%clk 0:02:35]}  Bc4 {[%clk 0:02:30]} 18. Nbd2 {[%clk 0:02:32]}  Rb4 {[%clk 0:02:28]} 19. Rcb1 {[%clk 0:02:16]}  h6 {[%clk 0:02:16]} 20. h3 {[%clk 0:02:12]}  Ra6 {[%clk 0:01:55]} 21. a5 {[%clk 0:01:58]}  Rxb1+ {[%clk 0:01:48]} 22. Qxb1 {[%clk 0:01:57]}  c5 {[%clk 0:01:47]} 23. Nxc4 {[%clk 0:01:50]}  dxc4 {[%clk 0:01:48]} 24. Qb5 {[%clk 0:01:48]}  c3 {[%clk 0:01:35]} 25. dxc5 {[%clk 0:01:10]}  Nxc5 {[%clk 0:01:30]} 26. Qc4 {[%clk 0:01:09]}  Rc6 {[%clk 0:00:55]} 27. Nd4 {[%clk 0:01:07]}  Rc8 {[%clk 0:00:55]} 28. Qxc3 {[%clk 0:01:06]}  Qd7 {[%clk 0:00:53]} 29. Nf3 {[%clk 0:01:00]}  Na6 {[%clk 0:00:49]} 30. Qb3 {[%clk 0:00:55]}  Qd6 {[%clk 0:00:46]} 31. Rd1 {[%clk 0:00:52]}  Qc6 {[%clk 0:00:31]} 32. Ne5 {[%clk 0:00:47]}  Qc7 {[%clk 0:00:27]} 33. Qb5 {[%clk 0:00:34]}  Rb8 {[%clk 0:00:20]} 34. Qxa6 {[%clk 0:00:32]}  Qxe5 {[%clk 0:00:21]} 35. Qd6 {[%clk 0:00:29]}  Qxd6 {[%clk 0:00:20]} 36. Rxd6 {[%clk 0:00:29]}  Rb1+ {[%clk 0:00:20]} 37. Kh2 {[%clk 0:00:30]}  Ra1 {[%clk 0:00:19]} 38. a6 {[%clk 0:00:28]}  g5 {[%clk 0:00:19]} 39. Rd8+ {[%clk 0:00:26]}  Kg7 {[%clk 0:00:19]} 40. Ra8 {[%clk 0:00:26]}  Ra2 {[%clk 0:00:19]} 41. Kg3 {[%clk 0:00:25]}  Kf6 {[%clk 0:00:19]} 42. Kf3 {[%clk 0:00:25]}  Kf5 {[%clk 0:00:18]} 43. g4+ {[%clk 0:00:24]}  Ke5 {[%clk 0:00:17]} 44. Kg3 {[%clk 0:00:25]}  Kf6 {[%clk 0:00:14]} 45. f4 {[%clk 0:00:25]}  Ra3 {[%clk 0:00:14]} 46. Kf3 {[%clk 0:00:25]}  gxf4 {[%clk 0:00:14]} 47. Kxf4 {[%clk 0:00:25]}  Ra4+ {[%clk 0:00:15]} 48. Kf3 {[%clk 0:00:25]}  Ke5 {[%clk 0:00:15]} 49. h4 {[%clk 0:00:25]}  Kf6 {[%clk 0:00:16]} 50. h5 {[%clk 0:00:25]}  Kg7 {[%clk 0:00:15]} 51. e4 {[%clk 0:00:24]}  e5 {[%clk 0:00:14]} 52. Ke3 {[%clk 0:00:23]}  Ra3+ {[%clk 0:00:15]} 53. Kd2 {[%clk 0:00:24]}  Kf6 {[%clk 0:00:16]} 54. a7 {[%clk 0:00:22]}  Kg7 {[%clk 0:00:12]} 55. Kc2 {[%clk 0:00:22]}  f6 {[%clk 0:00:12]} 56. Kb2 {[%clk 0:00:22]}  Ra6 {[%clk 0:00:13]} 57. Kb3 {[%clk 0:00:22]}  Ra1 {[%clk 0:00:13]} 58. Kc4 {[%clk 0:00:22]}  Ra2 {[%clk 0:00:14]} 59. Kb5 {[%clk 0:00:22]}  Ra1 {[%clk 0:00:14]} 60. Kb6 {[%clk 0:00:22]}  Rb1+ {[%clk 0:00:14]} 61. Kc6 {[%clk 0:00:22]}  Rc1+ {[%clk 0:00:15]} 62. Kd6 {[%clk 0:00:22]}  Ra1 {[%clk 0:00:08]} 63. Rd8 {[%clk 0:00:21]}  Ra6+ {[%clk 0:00:07]} 64. Ke7 {[%clk 0:00:19]}  Rxa7+ {[%clk 0:00:08]} 65. Rd7 {[%clk 0:00:19]}  Ra6 {[%clk 0:00:09]} 66. Ke8+ {[%clk 0:00:18]}  Kg8 {[%clk 0:00:09]} 67. Ke7 {[%clk 0:00:18]}  Kg7 {[%clk 0:00:10]} 68. Ke8+ {[%clk 0:00:18]}  Kg8 {[%clk 0:00:10]} 69. Ke7 {[%clk 0:00:18]}  Kg7 {[%clk 0:00:11]} 1/2-1/2


[Site "https://www.chess.com"]